[Event "St Kilda East and Caulfield Chess Club T3 2025 Under 1600 Mondays"]
[Site "St Kilda East, Australia"]
[Date "2025.08.25"]
[Round "5.1"]
[White "O'Connor, Alistair"]
[Black "Wang, Noah"]
[Result "0-1"]
[TimeControl "60 minutes per player per game plus 10 secionds per move from move one"]
[WhiteElo "1053"]
[BlackElo "913"]

1. d4 {[%clk 01:00:00]} {[%emt 00:00:03]} d5 {[%clk 01:00:08]} {[%emt
00:00:08]} 2. e4 {[%clk 01:00:01]} {[%emt 00:00:08]} c6 {[%clk 00:59:10]}
{[%emt 00:01:09]} 3. Nc3 {[%clk 00:59:35]} {[%emt 00:00:35]} dxe4 {[%clk
00:57:08]} {[%emt 00:02:12]} 4. f3 {[%clk 00:59:29]} {[%emt 00:00:15]} e6
{[%clk 00:55:43]} {[%emt 00:01:36]} 5. fxe4 {[%clk 00:59:00]} {[%emt 00:00:39]}
Nf6 {[%clk 00:54:55]} {[%emt 00:00:58]} 6. Bg5 {[%clk 00:58:26]} {[%emt
00:00:43]} Be7 {[%clk 00:54:58]} {[%emt 00:00:07]} 7. e5 {[%clk 00:57:17]}
{[%emt 00:01:19]} Nd5 {[%clk 00:54:18]} {[%emt 00:00:51]} 8. Bxe7 {[%clk
00:57:16]} {[%emt 00:00:11]} Qxe7 {[%clk 00:54:04]} {[%emt 00:00:24]} 9. Nf3
{[%clk 00:56:15]} {[%emt 00:01:10]} O-O {[%clk 00:48:23]} {[%emt 00:05:52]} 10.
Qd2 {[%clk 00:56:01]} {[%emt 00:00:24]} b5 {[%clk 00:47:23]} {[%emt 00:01:10]}
11. Bd3 {[%clk 00:55:42]} {[%emt 00:00:28]} b4 {[%clk 00:46:29]} {[%emt
00:01:04]} 12. Ne4 {[%clk 00:55:45]} {[%emt 00:00:07]} Nd7 {[%clk 00:43:53]}
{[%emt 00:02:46]} 13. O-O {[%clk 00:52:51]} {[%emt 00:03:05]} c5 {[%clk
00:42:16]} {[%emt 00:01:47]} 14. c4 {[%clk 00:52:13]} {[%emt 00:00:47]} bxc3
{[%clk 00:39:45]} {[%emt 00:02:41]} 15. bxc3 {[%clk 00:52:00]} {[%emt
00:00:24]} cxd4 {[%clk 00:36:07]} {[%emt 00:03:48]} 16. cxd4 {[%clk 00:51:52]}
{[%emt 00:00:17]} Bb7 {[%clk 00:35:24]} {[%emt 00:00:54]} 17. Nd6 {[%clk
00:51:28]} {[%emt 00:00:34]} N7b6 {[%clk 00:34:38]} {[%emt 00:00:56]} 18. Ng5
{[%clk 00:46:55]} {[%emt 00:04:43]} h6 {[%clk 00:33:32]} {[%emt 00:01:15]} 19.
Ngxf7 {[%clk 00:45:41]} {[%emt 00:01:24]} Nc8 {[%clk 00:30:19]} {[%emt
00:03:25]} 20. Nxh6+ {[%clk 00:45:15]} {[%emt 00:00:35]} gxh6 {[%clk 00:29:47]}
{[%emt 00:00:42]} 21. Rxf8+ {[%clk 00:45:13]} {[%emt 00:00:11]} Qxf8 {[%clk
00:29:17]} {[%emt 00:00:41]} 22. Nxb7 {[%clk 00:45:10]} {[%emt 00:00:13]} Nf4
{[%clk 00:26:15]} {[%emt 00:03:12]} 23. Rf1 {[%clk 00:45:01]} {[%emt 00:00:19]}
Qe7 {[%clk 00:25:32]} {[%emt 00:00:53]} 24. Qxf4 {[%clk 00:44:44]} {[%emt
00:00:27]} Qxb7 {[%clk 00:25:28]} {[%emt 00:00:14]} 0-1

[Event "St Kilda East and Caulfield Chess Club T3 2025 Under 1600 Mondays"]
[Site "St Kilda East, Australia"]
[Date "2025.08.25"]
[Round "5.4"]
[White "Karboulahanos, Kris"]
[Black "Beckman, John"]
[Result "0-1"]
[TimeControl "60 minutes per player per game plus 10 secionds per move from move one"]
[WhiteElo "1029"]
[BlackElo "1201"]

1. e4 {[%clk 01:00:05]} {[%emt 00:00:02]} d6 {[%clk 00:59:39]} {[%emt
00:00:32]} 2. Nc3 {[%clk 01:00:09]} {[%emt 00:00:07]} e5 {[%clk 00:59:17]}
{[%emt 00:00:31]} 3. Bc4 {[%clk 01:00:07]} {[%emt 00:00:13]} c6 {[%clk
00:58:02]} {[%emt 00:01:25]} 4. Nge2 {[%clk 01:00:01]} {[%emt 00:00:14]} Nf6
{[%clk 00:57:21]} {[%emt 00:00:52]} 5. d4 {[%clk 00:59:51]} {[%emt 00:00:21]}
Nbd7 {[%clk 00:56:19]} {[%emt 00:01:12]} 6. O-O {[%clk 00:59:33]} {[%emt
00:00:27]} Be7 {[%clk 00:54:31]} {[%emt 00:01:58]} 7. f4 {[%clk 00:59:12]}
{[%emt 00:00:32]} O-O {[%clk 00:54:02]} {[%emt 00:00:39]} 8. f5 {[%clk
00:58:50]} {[%emt 00:00:32]} b5 {[%emt 00:01:39]} 9. Nxb5 {[%clk 00:57:57]}
{[%emt 00:01:01]} cxb5 {[%emt 00:00:17]} 10. Bxb5 {[%emt 00:00:08]} Nxe4 {[%clk
00:50:46]} {[%emt 00:01:34]} 11. Bc6 {[%clk 00:57:46]} {[%emt 00:00:21]} Rb8
{[%clk 00:47:57]} {[%emt 00:02:59]} 12. Bxe4 {[%clk 00:57:47]} {[%emt
00:00:08]} Nf6 {[%clk 00:47:32]} {[%emt 00:00:36]} 13. Ng3 {[%clk 00:57:06]}
{[%emt 00:00:52]} d5 {[%clk 00:45:00]} {[%emt 00:02:42]} 14. dxe5 {[%clk
00:56:56]} {[%emt 00:00:19]} Nxe4 {[%clk 00:44:49]} {[%emt 00:00:20]} 15. Nh5
{[%clk 00:56:15]} {[%emt 00:00:51]} Bc5+ {[%clk 00:44:07]} {[%emt 00:00:51]} 16.
Kh1 {[%clk 00:56:01]} {[%emt 00:00:25]} Qh4 {[%clk 00:37:33]} {[%emt 00:06:43]}
17. g3 {[%clk 00:55:02]} {[%emt 00:01:10]} Qh3 {[%clk 00:37:14]} {[%emt
00:00:30]} 18. f6 {[%clk 00:52:23]} {[%emt 00:02:49]} g6 {[%clk 00:36:10]}
{[%emt 00:01:13]} 19. Nf4 {[%clk 00:52:07]} {[%emt 00:00:27]} Nxg3# {[%clk
00:36:06]} {[%emt 00:00:15]} 0-1

[Event "St Kilda East and Caulfield Chess Club T3 2025 Under 1600 Mondays"]
[Site "St Kilda East, Australia"]
[Date "2025.08.25"]
[Round "5.8"]
[White "Gordon, Samuel"]
[Black "Salama, John"]
[Result "0-1"]
[TimeControl "60 minutes per player per game plus 10 secionds per move from move one"]
[WhiteElo "526"]
[BlackElo "1296"]

1. e4 {[%clk 01:00:07]} {[%emt 00:00:02]} d5 {[%clk 01:00:13]} {[%emt
00:00:07]} 2. exd5 {[%clk 01:00:05]} {[%emt 00:00:12]} Qxd5 {[%clk 01:00:17]}
{[%emt 00:00:07]} 3. Nc3 {[%clk 01:00:09]} {[%emt 00:00:06]} Qa5 {[%clk
01:00:19]} {[%emt 00:00:08]} 4. g3 {[%clk 01:00:01]} {[%emt 00:00:18]} Nf6
{[%clk 00:59:59]} {[%emt 00:00:30]} 5. Bg2 {[%clk 01:00:02]} {[%emt 00:00:09]}
c6 {[%clk 00:59:43]} {[%emt 00:00:26]} 6. Nge2 {[%clk 00:59:52]} {[%emt
00:00:19]} Bf5 {[%clk 00:59:12]} {[%emt 00:00:41]} 7. O-O {[%clk 00:59:44]}
{[%emt 00:00:18]} e6 {[%clk 00:58:01]} {[%emt 00:01:22]} 8. a3 {[%clk
00:59:27]} {[%emt 00:00:28]} Bd6 {[%clk 00:57:17]} {[%emt 00:00:53]} 9. d3
{[%clk 00:59:16]} {[%emt 00:00:21]} Nbd7 {[%clk 00:55:00]} {[%emt 00:02:27]} 10.
Ne4 {[%clk 00:58:58]} {[%emt 00:00:28]} Be7 {[%clk 00:52:41]} {[%emt 00:02:28]}
11. Bd2 {[%clk 00:58:27]} {[%emt 00:00:41]} Qc7 {[%clk 00:51:53]} {[%emt
00:00:58]} 12. Bc3 {[%clk 00:57:52]} {[%emt 00:00:46]} O-O-O {[%clk 00:48:30]}
{[%emt 00:03:33]} 13. b4 {[%clk 00:57:36]} {[%emt 00:00:25]} Nb6 {[%clk
00:42:29]} {[%emt 00:06:10]} 14. Nxf6 {[%clk 00:57:12]} {[%emt 00:00:33]} Bxf6
{[%clk 00:42:20]} {[%emt 00:00:21]} 15. Bxf6 {[%clk 00:57:13]} {[%emt
00:00:08]} gxf6 {[%clk 00:42:26]} {[%emt 00:00:05]} 16. Qd2 {[%clk 00:56:40]}
{[%emt 00:00:43]} e5 {[%clk 00:40:44]} {[%emt 00:01:52]} 17. Rad1 {[%clk
00:56:36]} {[%emt 00:00:14]} h5 {[%clk 00:37:58]} {[%emt 00:02:57]} 18. Qe3
{[%clk 00:55:13]} {[%emt 00:01:33]} Kb8 {[%clk 00:35:44]} {[%emt 00:02:25]} 19.
d4 {[%clk 00:55:01]} {[%emt 00:00:21]} Bxc2 {[%clk 00:33:30]} {[%emt 00:02:24]}
20. Rd2 {[%clk 00:55:02]} {[%emt 00:00:09]} Nc4 {[%clk 00:32:55]} {[%emt
00:00:45]} 21. Qc3 {[%clk 00:54:52]} {[%emt 00:00:20]} Nxd2 {[%clk 00:32:47]}
{[%emt 00:00:18]} 22. Qxd2 {[%clk 00:54:59]} {[%emt 00:00:02]} Bf5 {[%clk
00:32:03]} {[%emt 00:00:54]} 23. Rc1 {[%clk 00:54:58]} {[%emt 00:00:10]} Qd7
{[%clk 00:31:04]} {[%emt 00:01:09]} 24. a4 {[%clk 00:54:33]} {[%emt 00:00:37]}
Be6 {[%clk 00:29:48]} {[%emt 00:01:25]} 25. Qe3 {[%clk 00:54:17]} {[%emt
00:00:25]} Bd5 {[%clk 00:29:27]} {[%emt 00:00:32]} 26. Bxd5 {[%clk 00:54:09]}
{[%emt 00:00:18]} Qxd5 {[%clk 00:29:14]} {[%emt 00:00:22]} 27. dxe5 {[%clk
00:54:01]} {[%emt 00:00:18]} fxe5 {[%clk 00:28:47]} {[%emt 00:00:38]} 28. Rc5
{[%clk 00:53:46]} {[%emt 00:00:24]} Qd1+ {[%clk 00:27:55]} {[%emt 00:01:02]} 29.
Kg2 {[%clk 00:53:50]} {[%emt 00:00:07]} Rd5 {[%clk 00:26:52]} {[%emt 00:01:13]}
30. Rxd5 {[%clk 00:53:37]} {[%emt 00:00:23]} Qxd5+ {[%clk 00:26:53]} {[%emt
00:00:09]} 31. f3 {[%clk 00:53:30]} {[%emt 00:00:17]} Rd8 {[%clk 00:25:27]}
{[%emt 00:01:36]} 32. Kh3 {[%clk 00:52:55]} {[%emt 00:00:45]} a6 {[%clk
00:23:11]} {[%emt 00:02:27]} 33. Nc3 {[%clk 00:52:47]} {[%emt 00:00:17]} Qe6+
{[%clk 00:21:54]} {[%emt 00:01:27]} 34. g4 {[%clk 00:52:44]} {[%emt 00:00:14]}
hxg4+ {[%clk 00:21:51]} {[%emt 00:00:12]} 35. fxg4 {[%clk 00:52:44]} {[%emt
00:00:08]} f5 {[%clk 00:20:56]} {[%emt 00:01:07]} 36. Qb6 {[%clk 00:52:36]}
{[%emt 00:00:19]} Rd3+ {[%clk 00:19:34]} {[%emt 00:01:32]} 0-1

[Event "St Kilda East and Caulfield Chess Club T3 2025 Under 1600 Mondays"]
[Site "St Kilda East, Australia"]
[Date "2025.08.25"]
[Round "5.5"]
[White "Nakada, Kazu"]
[Black "Kovalenko, Kiy"]
[Result "0-1"]
[TimeControl "60 minutes per player per game plus 10 secionds per move from move one"]
[WhiteElo "605"]
[BlackElo "888"]

1. e4 {[%clk 00:58:48]} {[%emt 00:01:21]} Nc6 {[%clk 00:50:42]} {[%emt
00:09:29]} 2. d4 {[%clk 00:58:46]} {[%emt 00:00:11]} d5 {[%clk 00:50:47]}
{[%emt 00:00:04]} 3. e5 {[%clk 00:56:55]} {[%emt 00:02:01]} Bf5 {[%clk
00:50:52]} {[%emt 00:00:05]} 4. Nc3 {[%clk 00:56:50]} {[%emt 00:00:15]} e6
{[%clk 00:50:35]} {[%emt 00:00:27]} 5. Bb5 {[%clk 00:56:48]} {[%emt 00:00:12]}
Qd7 {[%clk 00:50:02]} {[%emt 00:00:43]} 6. Nf3 {[%clk 00:56:24]} {[%emt
00:00:34]} O-O-O {[%clk 00:49:32]} {[%emt 00:00:40]} 7. Ng5 {[%clk 00:55:56]}
{[%emt 00:00:38]} f6 {[%clk 00:48:42]} {[%emt 00:01:00]} 8. Bxc6 {[%clk
00:55:55]} {[%emt 00:00:11]} bxc6 {[%clk 00:48:44]} {[%emt 00:00:08]} 9. Nf3
{[%clk 00:55:54]} {[%emt 00:00:11]} Bb4 {[%clk 00:48:03]} {[%emt 00:00:50]} 10.
h3 {[%clk 00:55:25]} {[%emt 00:00:40]} c5 {[%clk 00:48:03]} {[%emt 00:00:10]}
11. a3 {[%clk 00:54:58]} {[%emt 00:00:37]} cxd4 {[%clk 00:46:43]} {[%emt
00:01:29]} 12. Qxd4 {[%clk 00:53:35]} {[%emt 00:01:33]} Bxc3+ {[%clk 00:46:28]}
{[%emt 00:00:25]} 13. bxc3 {[%clk 00:52:49]} {[%emt 00:00:56]} Qb5 {[%clk
00:45:19]} {[%emt 00:01:20]} 14. a4 {[%clk 00:50:17]} {[%emt 00:02:42]} Qb7
{[%clk 00:44:33]} {[%emt 00:00:54]} 15. exf6 {[%clk 00:49:11]} {[%emt
00:01:17]} gxf6 {[%clk 00:43:32]} {[%emt 00:01:11]} 16. a5 {[%clk 00:48:19]}
{[%emt 00:01:02]} e5 {[%clk 00:43:21]} {[%emt 00:00:22]} 17. Nxe5 {[%clk
00:45:51]} {[%emt 00:02:38]} fxe5 {[%clk 00:43:21]} {[%emt 00:00:10]} 18. Qxe5
{[%clk 00:45:46]} {[%emt 00:00:15]} Nh6 {[%clk 00:42:17]} {[%emt 00:01:15]} 19.
Bxh6 {[%clk 00:45:45]} {[%emt 00:00:11]} Rde8 {[%clk 00:41:58]} {[%emt
00:00:28]} 20. Qxe8+ {[%clk 00:44:38]} {[%emt 00:01:17]} Rxe8+ {[%clk
00:41:57]} {[%emt 00:00:12]} 21. Kd2 {[%clk 00:44:45]} {[%emt 00:00:03]} Qb2
{[%clk 00:41:09]} {[%emt 00:00:59]} 22. Rhc1 {[%clk 00:44:41]} {[%emt
00:00:14]} Bxc2 {[%clk 00:41:02]} {[%emt 00:00:17]} 0-1